bitfinex/quotes_SOLUSD_20260309
["timestamp","ask_amount","ask_price","bid_price","bid_amount"]
[1773077527322,0.51941808,84.889,84.838,0.55057063]
[1773077527541,4.26381601,84.88,84.838,0.55057063]
[1773077527714,0.51941808,84.879,84.838,0.55057063]
[1773077528615,0.51941808,84.889,84.838,0.55057063]
[1773077528926,0.51941808,84.879,84.838,0.55057063]
[1773077529320,11.78161596,84.878,84.84,0.55057063]
[1773077529641,0.51941808,84.904,84.847,0.55057063]
[1773077530010,0.51941808,84.899,84.847,0.55057063]
[1773077531426,0.51941808,84.897,84.85,0.55057063]
[1773077532133,0.51941808,84.889,84.85,0.55057063]
[1773077532547,0.51941808,84.918,84.857,0.55057063]
[1773077532724,4.26381601,84.91,84.858,0.55057063]
[1773077533231,0.51941808,84.925,84.858,0.55057063]
[1773077533424,0.51941808,84.925,84.857,0.28432314]
[1773077533425,0.51941808,84.923,84.861,0.55057063]
[1773077533733,0.51941808,84.923,84.867,0.55057063]
[1773077534941,11.77523432,85.018,84.859,199.26496466]
[1773077534942,0.51941808,84.946,84.888,0.55057063]
[1773077535245,0.51941808,84.946,84.899,0.55057063]
[1773077535942,0.51941808,84.959,84.908,0.55057063]
[1773077536514,0.51941808,84.958,84.908,0.55057063]
[1773077537947,11.77066045,84.957,84.911,0.55057063]
[1773077538523,0.51941808,84.958,84.911,0.55057063]
[1773077538738,0.51941808,84.957,84.911,0.55057063]
[1773077539824,0.51941808,84.957,84.912,41.21914452]
[1773077540025,0.51941808,84.957,84.914,0.55057063]
[1773077542848,0.51941808,84.957,84.917,0.55057063]
[1773077543347,0.51941808,84.955,84.917,0.55057063]
[1773077544126,0.51941808,84.959,84.917,0.55057063]
[1773077544531,0.51941808,84.979,84.917,0.55057063]
[1773077544935,3.97815716,84.996,84.92,0.55057063]
[1773077544936,0.51941808,84.969,84.92,0.55057063]
[1773077545652,0.51941808,84.959,84.92,0.55057063]
[1773077545966,0.51941808,84.959,84.889,1.17800892]
[1773077545967,0.51941808,84.949,84.913,11.77675974]
[1773077546247,0.51941808,84.929,84.908,11.77740308]
[1773077546948,0.51941808,84.927,84.898,11.77884049]
[1773077547136,0.51941808,84.927,84.898,12.32941112]
[1773077547331,0.51941808,84.927,84.898,41.77651234]
[1773077547533,0.51941808,84.948,84.899,0.55057063]
[1773077547734,0.51941808,84.947,84.899,0.55057063]
[1773077547954,0.51941808,84.939,84.899,0.55057063]
[1773077548332,41.2016763,84.948,84.898,41.22594171]
[1773077548333,0.51941808,84.929,84.898,11.77884049]
[1773077549950,0.51941808,84.927,84.898,0.55057063]
[1773077550536,0.51941808,84.927,84.883,0.55057063]
[1773077551143,0.51941808,84.919,84.878,41.23565587]
[1773077551334,0.51941808,84.909,84.878,11.78161596]
[1773077551533,0.51941808,84.899,84.872,11.78239519]
[1773077551733,0.51941808,84.889,84.867,11.7830236]
[1773077551941,0.51941808,84.889,84.863,0.55057063]
[1773077551942,0.51941808,84.887,84.856,11.7846705]
[1773077552153,11.78022806,84.888,84.844,0.55057063]
[1773077552154,0.51941808,84.879,84.844,0.55057063]
[1773077553258,11.78022806,84.888,84.844,0.55057063]
[1773077553557,0.54103878,84.887,84.844,0.55057063]
[1773077553756,11.95176114,84.88,84.844,0.55057063]
[1773077554053,0.54103878,84.88,84.846,0.52176718]
[1773077555440,29.4465279,84.9,84.824,47.15591176]
[1773077555441,0.54103878,84.899,84.848,0.52176718]
[1773077555640,0.54103878,84.898,84.848,0.52176718]
[1773077556345,11.41072236,84.89,84.848,0.52176718]
[1773077557334,0.54103878,84.889,84.85,0.52176718]
[1773077558557,0.54103878,84.888,84.85,0.52176718]
[1773077558954,11.41072236,84.9,84.85,0.52176718]
[1773077559162,0.54103878,84.898,84.85,0.52176718]
[1773077560765,0.54103878,84.896,84.852,0.52176718]
[1773077560942,0.28432314,84.916,84.852,0.52176718]
[1773077560943,0.54103878,84.908,84.857,0.52176718]
[1773077561267,0.54103878,84.899,84.857,0.52176718]
[1773077561438,0.54103878,84.889,84.851,41.24877726]
[1773077561842,0.54103878,84.889,84.851,41.77054444]
[1773077562140,0.54103878,84.889,84.85,0.52176718]
[1773077562450,0.54103878,84.879,84.85,0.52176718]
[1773077564593,0.54103878,84.879,84.852,0.52176718]
[1773077564744,11.41072236,84.89,84.852,0.52176718]
[1773077564745,0.54103878,84.889,84.852,0.52176718]
[1773077565862,0.54103878,84.888,84.852,0.52176718]
[1773077566943,11.77937376,84.895,84.854,0.52176718]
[1773077567152,0.54103878,84.894,84.854,0.52176718]
[1773077567560,11.41072236,84.89,84.854,0.52176718]
[1773077567957,0.51909706,84.889,84.854,0.52176718]
[1773077568664,0.51909706,84.896,84.855,0.5374177]
[1773077569047,0.51909706,84.895,84.857,0.5374177]
[1773077569345,0.51909706,84.879,84.856,11.7846705]
[1773077569544,0.51909706,84.879,84.856,12.3220882]
[1773077570039,0.51909706,84.889,84.857,0.5374177]
[1773077571047,0.51909706,84.895,84.859,0.5374177]
[1773077572748,0.51909706,84.895,84.837,0.28432314]
[1773077572749,11.92981942,84.91,84.861,0.5374177]
[1773077573053,11.92981942,84.91,84.862,0.5374177]
[1773077573054,0.51909706,84.908,84.862,0.5374177]
[1773077573453,0.51909706,84.908,84.861,0.28432314]
[1773077573454,0.51909706,84.916,84.866,0.5374177]
[1773077573654,0.51909706,84.916,84.861,0.28432314]
[1773077573655,0.51909706,84.923,84.869,0.5374177]
[1773077574050,11.92981942,84.93,84.877,0.5374177]
[1773077574566,0.51909706,84.938,84.889,0.5374177]
[1773077574765,0.51909706,84.938,84.892,0.5374177]
[1773077574959,11.41072236,84.95,84.892,0.5374177]
[1773077574960,0.51909706,84.949,84.892,0.5374177]
[1773077575655,0.51909706,84.929,84.892,0.5374177]
[1773077577370,0.51909706,84.927,84.893,11.77953423]
[1773077577563,0.51909706,84.927,84.893,12.31695193]
[1773077577880,0.51909706,84.927,84.894,0.5374177]
[1773077579371,0.51909706,84.927,84.896,0.5374177]
[1773077579547,11.77495702,84.926,84.896,0.5374177]
[1773077579753,0.51909706,84.925,84.896,0.5374177]
[1773077581261,0.51909706,84.925,84.869,4.82477569]
[1773077581262,0.51909706,84.919,84.891,11.77973296]
[1773077582799,0.28432314,84.942,84.892,0.5374177]
[1773077582956,0.51909706,84.939,84.892,0.5374177]
[1773077583271,0.51801371,84.953,84.899,0.55045611]
[1773077584055,0.51801371,84.953,84.907,4.82477569]
[1773077584260,0.51801371,84.953,84.909,0.55045611]
[1773077584468,17.5586742,84.97,84.909,0.55045611]
[1773077584469,0.51801371,84.949,84.909,0.55045611]
[1773077585373,0.51801371,84.949,84.897,41.22642731]
[1773077585374,0.51801371,84.967,84.918,0.55045611]
[1773077586086,12.28631395,84.975,84.918,0.55045611]
[1773077586376,0.51801371,84.969,84.918,0.55045611]
[1773077587383,12.28703408,84.969,84.921,0.55045611]
[1773077588561,0.51801371,84.969,84.921,0.55045611]
[1773077589664,0.51801371,84.969,84.924,0.55045611]
[1773077590260,0.51801371,84.989,84.928,0.55045611]
[1773077590462,0.51801371,84.988,84.928,0.55045611]
[1773077590892,0.51801371,84.979,84.928,0.55045611]
[1773077592969,0.51801371,84.979,84.931,0.55045611]
[1773077594627,4.3565942,84.99,84.929,100.08359922]
[1773077594628,0.1,84.99,84.947,0.55045611]
[1773077594970,0.51801371,84.989,84.95,0.55045611]
[1773077595786,0.1,84.99,84.95,0.55045611]
[1773077597293,0.1,84.99,84.953,0.55045611]
[1773077597496,0.51801371,84.989,84.953,0.55045611]
[1773077597684,4.3565942,84.99,84.951,41.2002213]
[1773077597685,0.51801371,84.979,84.951,11.7714918]
[1773077599000,0.51801371,84.979,84.943,11.77252508]
[1773077599187,0.51801371,84.967,84.932,11.77412518]
[1773077599386,0.51801371,84.967,84.932,41.20943813]
[1773077601981,0.51801371,84.965,84.924,11.77523432]
[1773077602184,0.51801371,84.965,84.924,12.32569043]
[1773077602382,0.51801371,84.965,84.925,0.55045611]
[1773077604305,0.51801371,84.965,84.927,0.55045611]
[1773077604505,0.51801371,84.975,84.927,0.55045611]
[1773077604699,0.51801371,84.983,84.928,0.55045611]
[1773077607284,12.28521146,84.982,84.936,4.82477569]
[1773077607486,0.51801371,84.981,84.938,0.55045611]
[1773077609007,0.51801371,84.979,84.938,0.55045611]
[1773077609391,41.18713078,84.978,84.939,11.77315485]
[1773077609594,0.51801371,84.969,84.939,11.77315485]
[1773077610492,41.18713078,84.978,84.939,11.77315485]
[1773077610807,11.40381186,84.97,84.939,12.32361096]
[1773077612018,41.19149336,84.969,84.939,12.32361096]
[1773077612195,41.19149336,84.969,84.939,11.77315485]
[1773077612395,0.19348219,84.968,84.935,11.77364398]
[1773077612985,0.19348219,84.968,84.932,0.55045611]
[1773077613906,0.19125281,84.959,84.925,0.49367973]
[1773077614916,11.7705219,84.958,84.927,0.49367973]
[1773077617004,0.18908502,84.966,84.929,0.49367973]
[1773077617318,11.7689981,84.969,84.929,0.49367973]
[1773077618014,11.95737719,84.969,84.929,0.49367973]
[1773077619707,11.95737719,84.969,84.917,0.28432314]
[1773077619708,0.18768719,84.973,84.931,0.49367973]
[1773077620103,0.18700286,84.969,84.931,0.49367973]
[1773077621104,11.7689981,84.969,84.932,41.20943813]
[1773077621309,11.95531967,84.969,84.933,0.49367973]
[1773077622218,0.18564814,84.968,84.935,0.49367973]
[1773077622927,0.18498772,84.986,84.936,0.49367973]
[1773077624201,0.18432904,84.979,84.936,0.49367973]
[1773077624529,0.18432904,84.979,84.938,0.49367973]
[1773077624829,29.41557142,84.989,84.938,0.49367973]
[1773077624830,0.18368108,84.988,84.938,0.49367973]
[1773077625125,0.1,84.99,84.939,0.49367973]
[1773077625330,0.1,84.99,84.947,0.49367973]
[1773077626023,11.86610705,84.99,84.947,0.49367973]
[1773077626208,0.18303376,84.989,84.947,0.49367973]
[1773077626408,11.94940077,84.988,84.949,0.49367973]
[1773077626603,0.18303376,84.987,84.949,0.49367973]
[1773077629212,0.18053805,84.985,84.951,0.49594075]
[1773077632231,0.18053805,84.985,84.926,3.69383402]
[1773077632232,0.1787398,84.979,84.935,0.49594075]
[1773077632438,0.1787398,84.969,84.935,0.49594075]
[1773077633425,11.94729768,84.968,84.937,0.49594075]
[1773077633628,0.17816107,84.988,84.937,0.49594075]
[1773077634436,0.17758324,84.979,84.937,0.49594075]
[1773077634808,41.18179999,84.989,84.937,0.49594075]
[1773077634809,0.17701141,84.987,84.937,0.49594075]
[1773077636233,4.35719831,84.99,84.92,0.28432314]
[1773077636234,0.17644612,84.979,84.939,0.49594075]
[1773077636414,0.17644612,84.969,84.939,0.49594075]
[1773077641326,0.1,84.99,84.943,0.49594075]
[1773077641532,0.1,84.99,84.947,0.49594075]
[1773077642031,0.17319269,85.019,84.947,0.28432314]
[1773077642329,0.17319269,85.019,84.957,0.49594075]
[1773077642510,11.60571415,85.04,84.952,3.97815716]
[1773077642511,0.17319269,85.039,84.967,4.18977477]
[1773077642711,7.35135272,85.04,84.989,0.49594075]
[1773077642906,7.35135272,85.04,84.974,0.28432314]
[1773077642907,7.35135272,85.04,84.997,0.49594075]
[1773077643331,7.35135272,85.04,84.989,4.82477569]
[1773077643332,7.35135272,85.04,85.0,0.48718113]
[1773077645223,7.35135272,85.04,85.003,0.48718113]
[1773077646230,0.17063525,85.039,85.003,0.48718113]
[1773077647924,23.3648992,85.04,85.001,41.17598615]
[1773077647925,11.75944871,85.038,85.005,0.48718113]
[1773077648123,0.16964946,85.037,85.005,0.48718113]
[1773077648628,0.16964946,85.037,84.992,0.28432314]
[1773077648629,0.16964946,85.029,84.996,0.48718113]
[1773077648832,0.16916688,85.019,84.987,12.25361431]
[1773077649212,0.16916688,85.019,84.988,0.48718113]
[1773077650443,0.16916688,85.019,84.987,11.76643318]
[1773077650444,0.16869564,84.999,84.972,0.48718113]
[1773077650615,4.25436143,84.99,84.964,0.48718113]
[1773077650811,4.25436143,84.98,84.957,0.48718113]
[1773077651016,4.25436143,84.98,84.957,12.25782431]
[1773077651233,4.25436143,84.98,84.957,11.77064318]
[1773077651745,11.4006312,84.98,84.957,11.77064318]
[1773077652520,0.16757134,84.978,84.952,0.48718113]
[1773077653236,11.76761317,84.979,84.952,0.48718113]
[1773077654036,11.4006312,84.97,84.934,0.48718113]
[1773077654426,11.4006312,84.97,84.936,0.28432314]
[1773077654427,11.7689981,84.969,84.936,0.28432314]
[1773077654628,11.7689981,84.969,84.937,0.48718113]
[1773077656834,11.7689981,84.969,84.939,0.48718113]
[1773077657053,11.4006312,84.98,84.939,0.48718113]
[1773077657337,0.16438444,84.999,84.952,0.48718113]
[1773077657525,0.16438444,84.989,84.952,0.48718113]
[1773077657731,11.4006312,84.99,84.952,0.48718113]
[1773077658244,0.16438444,84.997,84.952,0.48718113]
[1773077658741,11.4006312,84.98,84.952,0.48718113]
[1773077659042,23.33129649,84.98,84.953,11.77121467]
[1773077659334,11.93066529,84.98,84.953,12.2583958]
[1773077659528,11.76750495,84.98,84.954,0.48718113]
[1773077659728,11.76685718,84.985,84.954,0.48718113]
[1773077661037,0.16196419,85.003,84.957,0.48718113]
[1773077662743,11.56200761,85.0,84.957,0.48718113]
[1773077663430,11.56200761,85.0,84.959,0.48718113]
[1773077663431,0.16079537,84.998,84.959,0.48718113]
[1773077664245,0.16022101,85.012,84.959,0.48718113]
[1773077664426,0.16022101,85.009,84.959,0.48718113]
[1773077664935,0.16022101,85.009,84.958,39.68400779]
[1773077665444,0.28432314,85.026,84.945,58.86151412]
[1773077665445,11.4006312,85.03,84.953,5.10909883]
[1773077665650,0.52945728,85.038,84.961,8.51860971]
[1773077665944,0.52945728,85.037,84.973,8.51860971]
[1773077666145,0.52945728,85.037,84.974,0.28432314]
[1773077666447,0.52945728,85.037,84.976,0.28432314]
[1773077666826,0.52945728,85.035,84.98,4.82477569]
[1773077667027,0.52945728,85.035,84.987,0.48718113]
[1773077667933,7.35135272,85.04,84.987,0.48718113]
[1773077668139,11.75931043,85.039,84.987,0.48718113]
[1773077668333,0.52945728,85.038,84.987,0.48718113]
[1773077670839,18.75198392,85.04,84.99,0.48718113]
[1773077670840,0.52945728,85.036,84.99,0.48718113]
[1773077672253,41.1585545,85.037,84.99,0.48718113]
[1773077672254,0.52945728,85.029,84.99,0.48718113]
[1773077673054,0.52945728,85.027,84.991,11.76595168]
[1773077673848,0.4966449,85.019,84.979,12.24519827]
[1773077674542,0.4966449,85.019,84.98,0.4775851]
[1773077675258,4.25185065,85.02,84.982,0.4775851]
[1773077675259,0.4966449,85.017,84.982,0.4775851]
[1773077676455,0.4966449,84.999,84.948,11.77190751]
[1773077676753,0.4966449,84.999,84.909,100.04884437]
[1773077676754,4.74849555,84.96,84.934,11.77384792]
[1773077676953,0.4966449,84.979,84.935,0.4775851]
[1773077677333,11.76775165,84.978,84.937,0.4775851]
[1773077677653,0.4966449,84.977,84.937,0.4775851]
[1773077679757,11.76802861,84.976,84.939,0.4775851]
[1773077679947,12.26467351,84.976,84.939,0.4775851]
[1773077681761,12.26467351,84.976,84.941,0.4775851]
[1773077682844,11.76622857,84.989,84.944,0.4775851]
[1773077683154,0.4966449,84.969,84.943,0.4775851]
[1773077683961,11.40204114,84.97,84.943,0.4775851]
[1773077684138,0.4966449,84.969,84.938,11.77324983]
[1773077684343,0.4966449,84.969,84.939,0.4775851]
[1773077685471,0.50462729,84.978,84.941,0.50012933]
[1773077686764,0.50462729,84.987,84.942,0.50012933]
[1773077687353,11.76580982,84.993,84.942,0.50012933]
[1773077687863,11.76580982,84.993,84.945,0.50012933]
[1773077688373,11.40204114,84.99,84.944,0.28432314]
[1773077688548,11.76580982,84.993,84.292,183.9064509]
[1773077688549,0.50462729,84.949,84.877,47.12658605]
[1773077688752,0.50462729,84.958,84.911,0.50012933]
[1773077690179,0.50462729,84.958,84.913,0.50012933]
[1773077690867,11.77021737,84.961,84.913,0.50012933]
[1773077692649,0.50462729,84.961,84.915,0.50012933]
[1773077693251,0.43252263,84.929,84.884,0.50012933]
[1773077693553,0.43252263,84.929,84.858,47.13731009]
[1773077693554,0.43252263,84.929,84.886,0.50012933]
[1773077694551,0.4322315,84.927,84.888,0.50012933]
[1773077695879,0.43165038,84.935,84.888,0.50012933]
[1773077696174,0.43165038,84.929,84.888,0.50012933]
[1773077697066,0.43165038,84.929,84.89,0.50012933]
[1773077698074,0.43109445,84.927,84.89,0.50012933]
[1773077699369,0.43082568,84.925,84.892,0.50012933]
[1773077699665,11.77495702,84.926,84.892,0.50012933]
[1773077700267,0.43055321,84.925,84.892,0.50012933]
[1773077701576,0.43028103,84.939,84.894,0.50012933]
[1773077701775,0.43028103,84.944,84.894,0.50012933]
[1773077702881,0.4297549,84.958,84.904,0.50012933]
[1773077703078,0.4297549,84.958,84.906,0.50012933]
[1773077703583,0.42950335,84.956,84.909,0.48984595]
[1773077704694,4.25830457,84.93,84.907,11.77759195]
[1773077704981,0.42925458,84.929,84.907,11.77759195]
[1773077705188,0.42901044,84.939,84.908,0.48984595]
[1773077705870,0.42901044,84.939,84.91,0.48984595]
[1773077706072,0.42875887,84.948,84.91,0.48984595]
[1773077707564,0.42851592,84.946,84.912,0.48984595]
[1773077707991,0.42826958,84.953,84.912,0.48984595]
[1773077708990,0.4280359,84.949,84.912,0.48984595]
[1773077711189,0.42756631,84.929,84.89,0.48984595]
[1773077712167,0.42726543,84.919,84.89,0.48984595]
[1773077712876,11.77606632,84.918,84.891,11.77981175]
[1773077713078,0.42695873,84.917,84.891,11.77981175]
[1773077714269,0.42665943,84.927,84.892,0.48984595]
[1773077714985,0.42635774,84.939,84.894,0.48984595]
[1773077715198,12.20005946,84.936,84.894,0.48984595]
[1773077715790,11.77295396,84.941,84.894,0.48984595]
[1773077716163,0.42605893,84.952,84.896,0.48984595]
[1773077716363,4.25830457,84.96,84.893,88.34650676]
[1773077716364,11.7703277,84.96,84.907,0.48984595]
[1773077716581,0.42605893,84.959,84.907,0.48984595]
[1773077717181,4.25830457,84.97,84.91,0.48984595]
[1773077717182,0.4257674,84.957,84.91,0.48984595]
[1773077717485,12.19490401,84.968,84.917,0.48984595]
[1773077718187,11.76913661,84.968,84.917,0.48984595]
[1773077718487,11.76845081,84.973,84.917,0.48984595]
[1773077719888,0.42491197,84.975,84.92,0.48984595]
[1773077720771,0.42491197,84.969,84.92,0.48984595]
[1773077722294,0.42435784,84.959,84.923,0.48984595]
[1773077722479,0.42435784,84.959,84.921,11.77565031]
[1773077723574,0.42435784,84.959,84.922,0.48984595]
[1773077723790,11.76913661,84.968,84.923,0.48984595]
[1773077723992,0.42408219,84.976,84.926,0.48984595]
[1773077724185,11.7681671,84.975,84.929,0.48984595]
[1773077724373,0.42408219,84.976,84.929,0.48984595]
[1773077724572,130.5526367,85.219,84.937,0.48984595]
[1773077724573,0.42381249,84.994,84.937,0.48984595]
[1773077727280,0.42381249,84.994,84.931,0.28432314]
[1773077727281,0.42302325,84.992,84.94,0.48984595]
[1773077727480,0.42302325,84.989,84.94,0.48984595]
[1773077732397,0.42302325,84.989,84.917,4.82477569]
[1773077732398,0.42176669,84.969,84.927,0.48984595]
[1773077734413,47.06093362,84.997,84.91,3.97815716]
[1773077734414,0.42104808,84.979,84.93,0.50507678]
[1773077735199,11.76775165,84.978,84.93,0.50507678]
[1773077735601,0.42081305,84.997,84.934,0.50507678]
[1773077735897,0.42081305,84.997,84.945,4.82477569]
[1773077736100,0.42081305,84.997,84.944,0.50507678]
[1773077736101,0.42081305,84.997,84.947,0.50507678]
[1773077737195,0.42035032,84.995,84.949,0.50507678]
[1773077739303,0.41989472,84.993,84.951,0.50507678]
[1773077740809,0.41967253,84.989,84.952,11.77135323]
[1773077741104,0.41967253,84.989,84.953,0.50507678]
[1773077742405,0.41967253,84.989,84.915,0.50507678]
[1773077742584,0.41967253,84.989,84.83,35.66923906]
[1773077742585,0.41923938,84.99,84.906,4.82477569]
[1773077742784,0.41923938,84.957,84.919,0.50507678]
[1773077742989,0.41923938,84.957,84.92,0.50507678]
[1773077743785,0.41902715,84.949,84.909,0.50507678]
[1773077744202,0.41902715,84.949,84.909,12.28239131]
[1773077744895,0.41881771,84.939,84.904,11.77787988]
[1773077748540,0.41780655,84.929,84.886,4.82477569]
[1773077748710,0.41780655,84.919,84.881,0.49830319]
[1773077749824,0.41761737,84.929,84.881,0.49830319]
[1773077750321,0.41761737,84.929,84.882,0.49830319]
[1773077750628,11.77467972,84.928,84.884,0.49830319]
[1773077750828,11.77319539,84.939,84.887,0.49830319]
[1773077753121,11.4029272,84.94,84.89,0.49830319]
[1773077754028,0.41685884,84.945,84.89,0.49830319]
[1773077755538,0.41685884,84.945,84.888,41.23079822]
[1773077755539,11.4029272,84.94,84.893,0.49830319]
[1773077756323,12.18877035,84.944,84.893,0.49830319]
[1773077756706,12.18877035,84.944,84.892,0.28432314]
[1773077756707,11.77246185,84.944,84.897,0.49830319]
[1773077757107,0.41613433,84.943,84.897,0.49830319]
[1773077758431,12.18869542,84.942,84.9,0.49830319]
[1773077758932,0.41578651,84.939,84.9,0.49830319]
[1773077759772,41.20458665,84.942,84.877,4.82477569]
[1773077759773,0.41578651,84.929,84.893,0.49830319]
[1773077759915,0.41578651,84.929,84.893,12.27783331]
[1773077760115,0.41561321,84.919,84.888,11.7801741]
[1773077760538,0.41561321,84.917,84.888,11.7801741]
[1773077761437,0.41561321,84.917,84.889,0.49830319]
[1773077762129,0.41561321,84.917,84.884,11.78071026]
[1773077762737,0.41526372,84.915,84.884,0.49830319]
[1773077763316,11.77634368,84.916,84.884,0.49830319]
[1773077763924,0.4147618,84.929,84.884,0.49830319]
[1773077764122,0.4147618,84.928,84.884,0.49830319]
[1773077765021,11.77481837,84.927,84.886,0.48521817]
[1773077765930,0.41443847,84.926,84.886,0.48521817]
[1773077766129,0.41443847,84.919,84.886,0.48521817]
[1773077767642,12.19046343,84.919,84.888,0.48521817]
[1773077767846,0.41428034,84.918,84.888,0.48521817]
[1773077768940,0.41412061,84.916,84.889,11.78008929]
[1773077769146,0.41412061,84.916,84.889,12.26530746]
[1773077769529,0.41412061,84.916,84.89,0.48521817]
[1773077772931,0.4133104,84.914,84.891,11.77981175]
[1773077773245,0.4133104,84.914,84.891,12.26502992]
[1773077774539,0.4133104,84.914,84.892,0.48521817]
[1773077774845,0.41313421,84.932,84.892,0.48521817]
[1773077775047,12.18722386,84.931,84.894,0.48521817]
[1773077775253,11.77364516,84.936,84.894,0.48521817]
[1773077776154,0.41278788,84.935,84.894,0.48521817]
[1773077778051,0.41244947,84.933,84.896,0.48521817]
[1773077778855,0.41244947,84.929,84.896,0.48521817]
[1773077779566,0.41228317,84.919,84.889,0.48521817]
[1773077779756,0.41228317,84.919,84.887,11.78031619]
[1773077780054,11.41628486,84.92,84.874,29.45510402]
[1773077780055,0.41211878,84.917,84.883,0.48521817]
[1773077782139,11.77598552,84.919,84.885,0.48521817]
[1773077782858,40.85248113,84.93,84.885,0.48521817]
[1773077782859,0.41179564,84.93,84.885,0.48521817]
[1773077783365,0.41163685,84.929,84.885,0.48521817]
[1773077784365,0.41147989,84.919,84.887,0.48521817]
[1773077784550,0.28432314,84.939,84.887,0.48521817]
[1773077784551,0.41147989,84.939,84.887,0.48521817]
[1773077784749,0.41147989,84.939,84.888,0.48521817]
[1773077785969,0.41132473,84.946,84.888,0.48521817]
[1773077786274,11.77329346,84.938,84.891,0.48521817]
[1773077786449,0.41117135,84.937,84.891,0.48521817]
[1773077786941,0.41117135,84.929,84.891,0.48521817]
[1773077787366,0.41101973,84.909,84.87,0.48521817]
[1773077787754,0.41101973,84.919,84.87,0.48521817]
[1773077788554,0.41086985,84.917,84.872,0.48521817]
[1773077789075,0.41072169,84.899,84.866,0.48521817]
[1773077790747,0.41057524,84.897,84.868,0.48521817]
[1773077791146,11.77884049,84.898,84.868,0.48521817]
[1773077791656,41.21775696,84.915,84.868,0.48521817]
[1773077791947,0.41028736,84.909,84.868,0.48521817]
[1773077792148,0.41028736,84.899,84.867,11.78314303]
[1773077792965,0.41028736,84.897,84.864,0.48521817]
[1773077794064,0.40986782,84.889,84.863,11.76159178]
[1773077794948,0.40986782,84.887,84.863,11.76159178]
[1773077795154,0.40973117,84.879,84.85,0.2]
[1773077795355,0.40973117,84.879,84.852,0.47772005]
[1773077795550,0.40973117,84.887,84.852,0.47772005]
[1773077795760,11.78022806,84.888,84.852,0.47772005]
[1773077796073,12.1884976,84.898,84.853,0.47772005]
[1773077797652,12.18705452,84.907,84.857,0.47772005]
[1773077797951,0.40946257,84.906,84.857,0.47772005]
[1773077798957,11.77786938,84.905,84.86,0.47772005]
[1773077800075,0.4092001,84.905,84.863,0.47772005]
[1773077801778,0.40894363,84.903,84.865,0.47772005]
[1773077802452,11.7780081,84.904,84.865,0.47772005]
[1773077802660,12.18630791,84.908,84.865,0.47772005]
[1773077802978,0.4088176,84.907,84.865,0.47772005]
[1773077803371,11.77694087,84.912,84.865,0.47772005]
[1773077803569,0.40869302,84.911,84.865,0.47772005]
[1773077804561,0.40856986,84.909,84.867,0.47772005]
[1773077806568,0.40856986,84.909,84.866,41.24148656]
[1773077806569,0.40820883,84.907,84.869,0.4657872]
[1773077807077,11.77745324,84.908,84.869,0.4657872]
[1773077807967,0.40809124,84.907,84.869,0.4657872]
[1773077808171,11.77745324,84.908,84.86,0.4657872]
[1773077808172,0.407975,84.899,84.86,0.4657872]
[1773077808685,0.407975,84.897,84.862,0.4657872]
[1773077810760,11.77911797,84.896,84.863,11.78369843]
[1773077810966,0.40774651,84.895,84.864,0.4657872]
[1773077811883,0.40752323,84.889,84.854,0.4657872]
[1773077812068,0.40752323,84.879,84.854,0.4657872]
[1773077812465,0.40752323,84.879,84.85,0.2]
[1773077813684,0.40752323,84.879,84.84,0.6657872]
[1773077813685,0.40741352,84.869,84.84,0.2]
[1773077813907,100.12486158,84.894,84.814,29.6182445]
[1773077813908,0.20741352,84.847,84.814,0.4657872]
[1773077814189,4.26364953,84.82,84.78,0.2]
[1773077814366,4.26364953,84.82,84.791,11.79370452]
[1773077814573,4.26364953,84.82,84.783,0.50101448]
[1773077814965,4.26364953,84.81,84.783,0.50101448]
[1773077815875,11.78981124,84.819,84.791,0.50101448]
[1773077816885,0.28432314,84.843,84.791,0.50101448]
[1773077816886,11.7877328,84.834,84.792,0.50101448]
[1773077817085,4.26364953,84.83,84.792,0.50101448]
[1773077817878,11.78842141,84.829,84.794,0.50101448]
[1773077818671,11.78760145,84.835,84.794,0.50101448]
[1773077819981,11.78760145,84.835,84.796,0.50101448]
[1773077820190,10.5314976,84.839,84.796,0.50101448]
[1773077820397,10.5314976,84.839,84.797,0.50101448]
[1773077820696,22.31864916,84.839,84.797,0.50101448]
[1773077820871,11.43877239,84.83,84.797,0.50101448]
[1773077821285,11.43877239,84.83,84.788,0.50101448]
[1773077821478,11.43877239,84.82,84.788,0.50101448]
[1773077821982,11.78842141,84.829,84.792,0.50101448]
[1773077822178,11.78842141,84.829,84.794,0.50101448]
[1773077822770,11.78786104,84.834,84.794,0.50101448]
[1773077822971,8.42519808,84.838,84.796,0.50101448]
[1773077823176,8.42519808,84.838,84.797,0.50101448]
[1773077824205,8.42519808,84.838,84.8,0.50101448]
[1773077825892,20.21250017,84.838,84.8,0.50101448]
[1773077826492,20.21250017,84.838,84.801,41.27309818]
[1773077826801,8.42519808,84.838,84.803,0.50101448]
[1773077827005,0.28432314,84.873,84.815,0.50101448]
[1773077827006,11.78286535,84.869,84.815,0.50101448]
[1773077827189,11.78286535,84.869,84.818,0.50101448]
[1773077827588,11.78216716,84.875,84.818,0.50101448]
[1773077827783,11.43342111,84.87,84.818,0.50101448]
[1773077828204,11.78216716,84.875,84.818,0.50101448]
[1773077828593,11.78216716,84.875,84.821,0.50101448]
[1773077828796,11.43342111,84.87,84.821,0.50101448]